[Event "Titled Tuesday Blitz December 20 Late 2022"]
[White "Kaplan, Avi Harrison"]
[Black "Thiel, Thomas"]
[WhiteFideId "30934559"]
[BlackFideId "4615964"]
[WhiteElo "1983"]
[BlackElo "2243"]
[Result "1-0"]
[Round "06"]
[TimeControl "180+1"]
[Date "2022.12.21"]
[WhiteClock "0:01:33"]
[BlackClock "0:01:42"]

1. d4 {[%clk 0:03:00]}  Nf6 {[%clk 0:02:59]} 2. c4 {[%clk 0:02:59]}  g6 {[%clk 0:02:59]} 3. Nc3 {[%clk 0:03:00]}  d5 {[%clk 0:02:59]} 4. cxd5 {[%clk 0:03:00]}  Nxd5 {[%clk 0:02:58]} 5. Bd2 {[%clk 0:03:01]}  c5 {[%clk 0:02:56]} 6. e4 {[%clk 0:02:55]}  Nxc3 {[%clk 0:02:53]} 7. Bxc3 {[%clk 0:02:54]}  cxd4 {[%clk 0:02:53]} 8. Bxd4 {[%clk 0:02:51]}  f6 {[%clk 0:02:53]} 9. Bc4 {[%clk 0:02:47]}  Nc6 {[%clk 0:02:52]} 10. Bc3 {[%clk 0:02:45]}  Qxd1+ {[%clk 0:02:51]} 11. Rxd1 {[%clk 0:02:46]}  e5 {[%clk 0:02:47]} 12. f4 {[%clk 0:02:45]}  Bb4 {[%clk 0:02:34]} 13. Bxb4 {[%clk 0:02:34]}  Nxb4 {[%clk 0:02:35]} 14. fxe5 {[%clk 0:02:32]}  fxe5 {[%clk 0:02:32]} 15. Nf3 {[%clk 0:02:32]}  Bg4 {[%clk 0:02:28]} 16. Bb5+ {[%clk 0:02:24]}  Ke7 {[%clk 0:02:25]} 17. O-O {[%clk 0:02:16]}  a6 {[%clk 0:02:23]} 18. Ba4 {[%clk 0:02:02]}  b5 {[%clk 0:02:22]} 19. Bb3 {[%clk 0:02:01]}  Rhf8 {[%clk 0:02:14]} 20. a3 {[%clk 0:01:46]}  Nc6 {[%clk 0:02:11]} 21. Bd5 {[%clk 0:01:45]}  Bxf3 {[%clk 0:02:02]} 22. Rxf3 {[%clk 0:01:42]}  Rad8 {[%clk 0:01:45]} 23. Rxf8 {[%clk 0:01:34]}  Kxf8 {[%clk 0:01:42]} 24. Rf1+ {[%clk 0:01:33]} 1-0


[Site "https://www.chess.com"]

[Event "Titled Tuesday Blitz December 20 Late 2022"]
[White "Kim, Sergey"]
[Black "Polster, Christian"]
[WhiteFideId "13700570"]
[BlackFideId "12965081"]
[WhiteElo "2494"]
[BlackElo "2195"]
[Result "0-1"]
[Round "06"]
[TimeControl "180+1"]
[Date "2022.12.21"]
[WhiteClock "0:01:24"]
[BlackClock "0:00:19"]

1. d4 {[%clk 0:03:00]}  d5 {[%clk 0:03:00]} 2. c4 {[%clk 0:03:01]}  e6 {[%clk 0:02:57]} 3. Nc3 {[%clk 0:03:01]}  c6 {[%clk 0:02:56]} 4. e3 {[%clk 0:03:00]}  Nf6 {[%clk 0:02:56]} 5. Nf3 {[%clk 0:02:59]}  Bd6 {[%clk 0:02:56]} 6. a3 {[%clk 0:02:58]}  Nbd7 {[%clk 0:02:54]} 7. Bd3 {[%clk 0:02:57]}  O-O {[%clk 0:02:54]} 8. O-O {[%clk 0:02:56]}  dxc4 {[%clk 0:02:54]} 9. Bxc4 {[%clk 0:02:56]}  b5 {[%clk 0:02:55]} 10. Ba2 {[%clk 0:02:56]}  Bb7 {[%clk 0:02:54]} 11. e4 {[%clk 0:02:54]}  e5 {[%clk 0:02:54]} 12. Bg5 {[%clk 0:02:53]}  h6 {[%clk 0:02:53]} 13. Bh4 {[%clk 0:02:52]}  Re8 {[%clk 0:02:49]} 14. Re1 {[%clk 0:02:51]}  exd4 {[%clk 0:02:39]} 15. Qxd4 {[%clk 0:02:49]}  Qc7 {[%clk 0:02:28]} 16. Rac1 {[%clk 0:02:46]}  Bc5 {[%clk 0:02:01]} 17. Qd2 {[%clk 0:02:39]}  a6 {[%clk 0:01:44]} 18. Bg3 {[%clk 0:02:25]}  Qb6 {[%clk 0:01:40]} 19. b4 {[%clk 0:02:14]}  Bf8 {[%clk 0:01:34]} 20. e5 {[%clk 0:02:15]}  Nd5 {[%clk 0:01:27]} 21. Nxd5 {[%clk 0:02:12]}  cxd5 {[%clk 0:01:25]} 22. Bxd5 {[%clk 0:02:12]}  Rad8 {[%clk 0:01:18]} 23. Qa2 {[%clk 0:02:02]}  Bxd5 {[%clk 0:01:11]} 24. Qxd5 {[%clk 0:02:01]}  Nxe5 {[%clk 0:01:05]} 25. Qb3 {[%clk 0:02:00]}  Nd3 {[%clk 0:00:50]} 26. Rxe8 {[%clk 0:01:53]}  Nxc1 {[%clk 0:00:46]} 27. Qe3 {[%clk 0:01:45]}  Rd1+ {[%clk 0:00:39]} 28. Ne1 {[%clk 0:01:43]}  Qxe3 {[%clk 0:00:34]} 29. Rxe3 {[%clk 0:01:42]}  Nd3 {[%clk 0:00:33]} 30. f3 {[%clk 0:01:42]}  Nxe1 {[%clk 0:00:24]} 31. Bxe1 {[%clk 0:01:42]}  a5 {[%clk 0:00:21]} 32. bxa5 {[%clk 0:01:24]}  Bc5 {[%clk 0:00:19]} 0-1


[Site "https://www.chess.com"]

[Event "Titled Tuesday Blitz December 20 Late 2022"]
[White "Maksimovic, Bojan"]
[Black "Sebag, Marie"]
[WhiteFideId "14408120"]
[BlackFideId "617822"]
[WhiteElo "2462"]
[BlackElo "2440"]
[Result "0-1"]
[Round "06"]
[TimeControl "180+1"]
[Date "2022.12.20"]
[WhiteClock "0:00:47"]
[BlackClock "0:00:16"]

1. Nf3 {[%clk 0:03:00]}  d5 {[%clk 0:02:58]} 2. g3 {[%clk 0:03:00]}  c6 {[%clk 0:02:57]} 3. Bg2 {[%clk 0:03:01]}  Bg4 {[%clk 0:02:56]} 4. d3 {[%clk 0:03:01]}  Nd7 {[%clk 0:02:56]} 5. c3 {[%clk 0:03:01]}  e6 {[%clk 0:02:55]} 6. Qc2 {[%clk 0:03:01]}  Bd6 {[%clk 0:02:53]} 7. Nbd2 {[%clk 0:02:59]}  Ne7 {[%clk 0:02:53]} 8. O-O {[%clk 0:02:57]}  O-O {[%clk 0:02:51]} 9. e4 {[%clk 0:02:57]}  e5 {[%clk 0:02:51]} 10. Re1 {[%clk 0:02:56]}  f6 {[%clk 0:02:49]} 11. d4 {[%clk 0:02:55]}  Kh8 {[%clk 0:02:21]} 12. c4 {[%clk 0:02:51]}  exd4 {[%clk 0:02:00]} 13. Nxd4 {[%clk 0:02:52]}  Ne5 {[%clk 0:01:57]} 14. h3 {[%clk 0:02:42]}  Bd7 {[%clk 0:01:56]} 15. exd5 {[%clk 0:02:27]}  cxd5 {[%clk 0:01:54]} 16. cxd5 {[%clk 0:02:28]}  Rc8 {[%clk 0:01:50]} 17. Qb3 {[%clk 0:02:29]}  Bc5 {[%clk 0:01:50]} 18. Ne6 {[%clk 0:02:26]}  Bxe6 {[%clk 0:01:50]} 19. dxe6 {[%clk 0:02:27]}  Nd3 {[%clk 0:01:44]} 20. Rf1 {[%clk 0:02:27]}  Nxf2 {[%clk 0:01:41]} 21. Rxf2 {[%clk 0:02:26]}  Bxf2+ {[%clk 0:01:41]} 22. Kh2 {[%clk 0:02:15]}  Rxc1 {[%clk 0:00:31]} 23. Rxc1 {[%clk 0:02:12]}  Qxd2 {[%clk 0:00:31]} 24. Rc3 {[%clk 0:01:54]}  Qe1 {[%clk 0:00:27]} 25. h4 {[%clk 0:01:54]}  Nf5 {[%clk 0:00:24]} 26. Rf3 {[%clk 0:01:39]}  Bxg3+ {[%clk 0:00:24]} 27. Rxg3 {[%clk 0:01:39]}  Qxg3+ {[%clk 0:00:23]} 28. Qxg3 {[%clk 0:01:40]}  Nxg3 {[%clk 0:00:23]} 29. Kxg3 {[%clk 0:01:41]}  Re8 {[%clk 0:00:23]} 30. Bd5 {[%clk 0:01:12]}  g6 {[%clk 0:00:23]} 31. Kf4 {[%clk 0:01:12]}  Kg7 {[%clk 0:00:24]} 32. Ke4 {[%clk 0:01:10]}  Kf8 {[%clk 0:00:24]} 33. Kd4 {[%clk 0:01:08]}  Ke7 {[%clk 0:00:24]} 34. Bxb7 {[%clk 0:01:03]}  Rb8 {[%clk 0:00:23]} 35. Bd5 {[%clk 0:01:01]}  Rxb2 {[%clk 0:00:23]} 36. Bb3 {[%clk 0:01:02]}  Rh2 {[%clk 0:00:23]} 37. Kc5 {[%clk 0:01:02]}  Rxh4 {[%clk 0:00:23]} 38. Kc6 {[%clk 0:01:02]}  a5 {[%clk 0:00:22]} 39. Kb5 {[%clk 0:01:00]}  a4 {[%clk 0:00:22]} 40. Bxa4 {[%clk 0:01:00]}  Kxe6 {[%clk 0:00:23]} 41. Bb3+ {[%clk 0:01:00]}  Ke7 {[%clk 0:00:23]} 42. a4 {[%clk 0:01:01]}  Rh3 {[%clk 0:00:21]} 43. Kb4 {[%clk 0:00:53]}  Kd6 {[%clk 0:00:20]} 44. a5 {[%clk 0:00:54]}  Kc7 {[%clk 0:00:20]} 45. Be6 {[%clk 0:00:53]}  Rh1 {[%clk 0:00:17]} 46. Kc5 {[%clk 0:00:52]}  Kb8 {[%clk 0:00:17]} 47. Kd6 {[%clk 0:00:51]}  Ka7 {[%clk 0:00:16]} 48. Bc4 {[%clk 0:00:48]}  Re1 {[%clk 0:00:16]} 49. Bg8 {[%clk 0:00:47]}  h5 {[%clk 0:00:16]} 50. Bf7 {[%clk 0:00:47]}  h4 {[%clk 0:00:16]} 0-1


[Site "https://www.chess.com"]

[Event "Titled Tuesday Blitz December 20 Late 2022"]
[White "Matthes, Aaron"]
[Black "Carbone, Diego"]
[WhiteFideId "16227310"]
[BlackFideId "3002179"]
[WhiteElo "2342"]
[BlackElo "2266"]
[Result "0-1"]
[Round "06"]
[TimeControl "180+1"]
[Date "2022.12.21"]
[WhiteClock "0:00:20"]
[BlackClock "0:00:06"]

1. d4 {[%clk 0:03:00]}  d5 {[%clk 0:02:58]} 2. Bf4 {[%clk 0:03:00]}  Nf6 {[%clk 0:02:58]} 3. e3 {[%clk 0:03:00]}  Bf5 {[%clk 0:02:55]} 4. Bd3 {[%clk 0:02:58]}  Bxd3 {[%clk 0:02:53]} 5. Qxd3 {[%clk 0:02:59]}  c6 {[%clk 0:02:53]} 6. Nd2 {[%clk 0:02:56]}  e6 {[%clk 0:02:49]} 7. Ngf3 {[%clk 0:02:55]}  Bd6 {[%clk 0:02:46]} 8. Bxd6 {[%clk 0:02:52]}  Qxd6 {[%clk 0:02:47]} 9. c4 {[%clk 0:02:51]}  Nbd7 {[%clk 0:02:44]} 10. O-O {[%clk 0:02:51]}  O-O {[%clk 0:02:44]} 11. Rab1 {[%clk 0:02:43]}  a5 {[%clk 0:02:42]} 12. a3 {[%clk 0:02:43]}  Rfd8 {[%clk 0:01:54]} 13. Rfd1 {[%clk 0:02:35]}  Qe7 {[%clk 0:01:51]} 14. Qc3 {[%clk 0:02:30]}  dxc4 {[%clk 0:01:46]} 15. Nxc4 {[%clk 0:02:29]}  Ne4 {[%clk 0:01:43]} 16. Qc2 {[%clk 0:02:25]}  Nd6 {[%clk 0:01:40]} 17. Nce5 {[%clk 0:02:18]}  Nxe5 {[%clk 0:01:39]} 18. Nxe5 {[%clk 0:02:15]}  Nb5 {[%clk 0:01:39]} 19. Rbc1 {[%clk 0:02:08]}  a4 {[%clk 0:01:38]} 20. Nc4 {[%clk 0:02:04]}  Ra6 {[%clk 0:01:33]} 21. Qe2 {[%clk 0:01:52]}  g6 {[%clk 0:01:32]} 22. Nd2 {[%clk 0:01:49]}  Rd5 {[%clk 0:01:28]} 23. Ne4 {[%clk 0:01:48]}  Ra8 {[%clk 0:01:25]} 24. Rc5 {[%clk 0:01:41]}  Kg7 {[%clk 0:01:24]} 25. Rdc1 {[%clk 0:01:39]}  Rad8 {[%clk 0:01:23]} 26. Qc2 {[%clk 0:01:33]}  Ra8 {[%clk 0:01:22]} 27. Rc4 {[%clk 0:01:31]}  Qh4 {[%clk 0:01:15]} 28. Nd2 {[%clk 0:01:21]}  Rh5 {[%clk 0:01:12]} 29. Nf3 {[%clk 0:01:21]}  Qg4 {[%clk 0:01:10]} 30. d5 {[%clk 0:01:17]}  Qf5 {[%clk 0:00:56]} 31. e4 {[%clk 0:01:10]}  Qf4 {[%clk 0:00:53]} 32. dxc6 {[%clk 0:01:06]}  bxc6 {[%clk 0:00:53]} 33. Rxc6 {[%clk 0:01:06]}  Rd8 {[%clk 0:00:47]} 34. Rc5 {[%clk 0:01:02]}  Rxc5 {[%clk 0:00:25]} 35. Qxc5 {[%clk 0:01:00]}  Nd6 {[%clk 0:00:26]} 36. Qd4+ {[%clk 0:00:48]}  Kg8 {[%clk 0:00:22]} 37. Re1 {[%clk 0:00:39]}  Rc8 {[%clk 0:00:15]} 38. h3 {[%clk 0:00:31]}  Rc1 {[%clk 0:00:11]} 39. Rd1 {[%clk 0:00:25]}  Rxd1+ {[%clk 0:00:11]} 40. Qxd1 {[%clk 0:00:26]}  Nxe4 {[%clk 0:00:11]} 41. Qd8+ {[%clk 0:00:25]}  Kg7 {[%clk 0:00:11]} 42. Qd4+ {[%clk 0:00:26]}  f6 {[%clk 0:00:12]} 43. Qd7+ {[%clk 0:00:21]}  Kh6 {[%clk 0:00:12]} 44. Qd3 {[%clk 0:00:17]}  f5 {[%clk 0:00:10]} 45. g3 {[%clk 0:00:16]}  Qc1+ {[%clk 0:00:08]} 46. Kg2 {[%clk 0:00:17]}  Qxb2 {[%clk 0:00:09]} 47. Qe3+ {[%clk 0:00:17]}  Kg7 {[%clk 0:00:08]} 48. Nd4 {[%clk 0:00:18]}  Kf6 {[%clk 0:00:06]} 49. h4 {[%clk 0:00:14]}  Qc3 {[%clk 0:00:07]} 50. Qxc3 {[%clk 0:00:10]}  Nxc3 {[%clk 0:00:07]} 51. Kf3 {[%clk 0:00:10]}  Nb1 {[%clk 0:00:06]} 52. Nc2 {[%clk 0:00:10]}  Ke5 {[%clk 0:00:05]} 53. Ke3 {[%clk 0:00:11]}  Kd5 {[%clk 0:00:05]} 54. Kd3 {[%clk 0:00:11]}  e5 {[%clk 0:00:04]} 55. Nb4+ {[%clk 0:00:11]}  Kc5 {[%clk 0:00:04]} 56. Nc2 {[%clk 0:00:10]}  e4+ {[%clk 0:00:04]} 57. Ke3 {[%clk 0:00:10]}  Kc4 {[%clk 0:00:04]} 58. Kf4 {[%clk 0:00:10]}  Kc3 {[%clk 0:00:05]} 59. Ne3 {[%clk 0:00:10]}  Nxa3 {[%clk 0:00:06]} 60. Kg5 {[%clk 0:00:11]}  Nc4 {[%clk 0:00:05]} 61. Kh6 {[%clk 0:00:11]}  Nxe3 {[%clk 0:00:05]} 62. fxe3 {[%clk 0:00:12]}  a3 {[%clk 0:00:06]} 63. Kxh7 {[%clk 0:00:13]}  a2 {[%clk 0:00:07]} 64. Kxg6 {[%clk 0:00:13]}  a1=Q {[%clk 0:00:07]} 65. h5 {[%clk 0:00:14]}  Qh1 {[%clk 0:00:06]} 66. h6 {[%clk 0:00:15]}  Kd3 {[%clk 0:00:07]} 67. Kxf5 {[%clk 0:00:16]}  Kxe3 {[%clk 0:00:07]} 68. g4 {[%clk 0:00:17]}  Kf3 {[%clk 0:00:07]} 69. g5 {[%clk 0:00:18]}  e3 {[%clk 0:00:08]} 70. g6 {[%clk 0:00:18]}  Qxh6 {[%clk 0:00:08]} 71. g7 {[%clk 0:00:18]}  Qxg7 {[%clk 0:00:07]} 72. Ke6 {[%clk 0:00:18]}  e2 {[%clk 0:00:08]} 73. Kf5 {[%clk 0:00:18]}  Qf8+ {[%clk 0:00:07]} 74. Kg5 {[%clk 0:00:19]}  e1=Q {[%clk 0:00:06]} 75. Kg6 {[%clk 0:00:19]}  Qg3+ {[%clk 0:00:06]} 76. Kh5 {[%clk 0:00:20]}  Qh8# {[%clk 0:00:06]} 0-1


[Site "https://www.chess.com"]

[Event "Titled Tuesday Blitz December 20 Late 2022"]
[White "Migot, Tangi"]
[Black "Ansh M Shah"]
[WhiteFideId "662445"]
[BlackFideId "25033379"]
[WhiteElo "2560"]
[BlackElo "2084"]
[Result "1-0"]
[Round "06"]
[TimeControl "180+1"]
[Date "2022.12.21"]
[WhiteClock "0:00:58"]
[BlackClock "0:00:47"]

1. b3 {[%clk 0:03:00]}  e5 {[%clk 0:02:57]} 2. Bb2 {[%clk 0:03:01]}  Nc6 {[%clk 0:02:58]} 3. g3 {[%clk 0:03:01]}  g6 {[%clk 0:02:58]} 4. Bg2 {[%clk 0:03:01]}  Bg7 {[%clk 0:02:58]} 5. h4 {[%clk 0:03:02]}  h5 {[%clk 0:02:58]} 6. e3 {[%clk 0:03:02]}  d6 {[%clk 0:02:59]} 7. Ne2 {[%clk 0:03:02]}  Nge7 {[%clk 0:02:59]} 8. d3 {[%clk 0:03:03]}  O-O {[%clk 0:02:59]} 9. Nd2 {[%clk 0:03:03]}  f5 {[%clk 0:02:59]} 10. a3 {[%clk 0:03:04]}  Kh7 {[%clk 0:02:59]} 11. Nf3 {[%clk 0:03:02]}  Ng8 {[%clk 0:02:59]} 12. Ng5+ {[%clk 0:03:00]}  Kh8 {[%clk 0:03:00]} 13. Qd2 {[%clk 0:02:58]}  Nh6 {[%clk 0:03:00]} 14. d4 {[%clk 0:02:53]}  e4 {[%clk 0:03:00]} 15. Nf4 {[%clk 0:02:52]}  Qe8 {[%clk 0:02:58]} 16. c4 {[%clk 0:02:50]}  Ng4 {[%clk 0:02:47]} 17. b4 {[%clk 0:02:49]}  a6 {[%clk 0:02:47]} 18. a4 {[%clk 0:02:16]}  Nd8 {[%clk 0:02:43]} 19. d5 {[%clk 0:02:14]}  Ne5 {[%clk 0:02:41]} 20. O-O-O {[%clk 0:02:05]}  Nxc4 {[%clk 0:02:28]} 21. Bxg7+ {[%clk 0:02:05]}  Kxg7 {[%clk 0:02:28]} 22. Qc3+ {[%clk 0:02:01]}  Ne5 {[%clk 0:02:21]} 23. Qxc7+ {[%clk 0:01:42]}  Qd7 {[%clk 0:02:21]} 24. Nge6+ {[%clk 0:01:37]}  Nxe6 {[%clk 0:02:06]} 25. Nxe6+ {[%clk 0:01:38]}  Kf6 {[%clk 0:01:59]} 26. Qxd7 {[%clk 0:01:36]}  Bxd7 {[%clk 0:02:00]} 27. Nxf8 {[%clk 0:01:34]}  Rxf8 {[%clk 0:02:01]} 28. Kb1 {[%clk 0:01:28]}  Bxa4 {[%clk 0:02:00]} 29. Rc1 {[%clk 0:01:28]}  Rf7 {[%clk 0:01:58]} 30. Rc8 {[%clk 0:01:24]}  Nd3 {[%clk 0:01:56]} 31. f3 {[%clk 0:01:22]}  exf3 {[%clk 0:01:53]} 32. Bxf3 {[%clk 0:01:21]}  Nxb4 {[%clk 0:01:53]} 33. Rhc1 {[%clk 0:01:16]}  Ke5 {[%clk 0:01:30]} 34. R1c7 {[%clk 0:01:12]}  Rxc7 {[%clk 0:01:11]} 35. Rxc7 {[%clk 0:01:13]}  Nxd5 {[%clk 0:01:11]} 36. Bxd5 {[%clk 0:01:12]}  Kxd5 {[%clk 0:01:12]} 37. Rxb7 {[%clk 0:01:12]}  Ke4 {[%clk 0:01:05]} 38. Rb4+ {[%clk 0:01:12]}  Kxe3 {[%clk 0:01:05]} 39. Rxa4 {[%clk 0:01:12]}  Kf3 {[%clk 0:01:05]} 40. Ra3+ {[%clk 0:01:09]}  Kg4 {[%clk 0:01:05]} 41. Kc2 {[%clk 0:01:07]}  g5 {[%clk 0:01:05]} 42. Ra4+ {[%clk 0:00:57]}  Kxg3 {[%clk 0:00:48]} 43. hxg5 {[%clk 0:00:57]}  f4 {[%clk 0:00:46]} 44. g6 {[%clk 0:00:58]}  f3 {[%clk 0:00:47]} 45. g7 {[%clk 0:00:58]} 1-0


[Site "https://www.chess.com"]

[Event "Titled Tuesday Blitz December 20 Late 2022"]
[White "Mihajlov, Sebastian"]
[Black "Itkis, Boris"]
[WhiteFideId "1512110"]
[BlackFideId "1209167"]
[WhiteElo "2464"]
[BlackElo "2216"]
[Result "1-0"]
[Round "06"]
[TimeControl "180+1"]
[Date "2022.12.21"]
[WhiteClock "0:00:36"]
[BlackClock "0:00:14"]

1. e4 {[%clk 0:02:59]}  e5 {[%clk 0:02:58]} 2. Nc3 {[%clk 0:02:57]}  Nf6 {[%clk 0:02:57]} 3. Bc4 {[%clk 0:02:57]}  Nxe4 {[%clk 0:02:55]} 4. Qh5 {[%clk 0:02:56]}  Nd6 {[%clk 0:02:53]} 5. Bb3 {[%clk 0:02:55]}  g6 {[%clk 0:02:48]} 6. Qxe5+ {[%clk 0:02:50]}  Qe7 {[%clk 0:02:47]} 7. Nf3 {[%clk 0:02:34]}  Nc6 {[%clk 0:02:43]} 8. Qxe7+ {[%clk 0:02:30]}  Bxe7 {[%clk 0:02:44]} 9. Nd5 {[%clk 0:02:27]}  Bd8 {[%clk 0:02:37]} 10. c3 {[%clk 0:02:27]}  O-O {[%clk 0:02:35]} 11. O-O {[%clk 0:02:26]}  Ne7 {[%clk 0:02:31]} 12. Nf4 {[%clk 0:02:14]}  c6 {[%clk 0:02:23]} 13. d4 {[%clk 0:02:14]}  Bc7 {[%clk 0:02:12]} 14. Re1 {[%clk 0:02:08]}  Nef5 {[%clk 0:02:00]} 15. g4 {[%clk 0:02:05]}  Ng7 {[%clk 0:01:57]} 16. Ne5 {[%clk 0:02:01]}  Ne6 {[%clk 0:01:49]} 17. Nxe6 {[%clk 0:02:00]}  dxe6 {[%clk 0:01:47]} 18. Bh6 {[%clk 0:02:00]}  Re8 {[%clk 0:01:45]} 19. Rad1 {[%clk 0:01:53]}  a5 {[%clk 0:01:44]} 20. h4 {[%clk 0:01:50]}  a4 {[%clk 0:01:43]} 21. Bc2 {[%clk 0:01:50]}  Nb5 {[%clk 0:01:41]} 22. h5 {[%clk 0:01:47]}  a3 {[%clk 0:01:37]} 23. hxg6 {[%clk 0:01:41]}  hxg6 {[%clk 0:01:36]} 24. c4 {[%clk 0:01:30]}  Na7 {[%clk 0:00:51]} 25. b3 {[%clk 0:01:28]}  b5 {[%clk 0:00:50]} 26. Be4 {[%clk 0:01:09]}  Bb7 {[%clk 0:00:47]} 27. c5 {[%clk 0:01:00]}  b4 {[%clk 0:00:36]} 28. Nd7 {[%clk 0:00:44]}  Bd8 {[%clk 0:00:28]} 29. Bd2 {[%clk 0:00:44]}  Bc8 {[%clk 0:00:19]} 30. Ne5 {[%clk 0:00:39]}  Bc7 {[%clk 0:00:14]} 31. Bxb4 {[%clk 0:00:37]}  Bxe5 {[%clk 0:00:14]} 32. dxe5 {[%clk 0:00:37]}  Nb5 {[%clk 0:00:14]} 33. Bxc6 {[%clk 0:00:36]} 1-0


[Site "https://www.chess.com"]

[Event "Titled Tuesday Blitz December 20 Late 2022"]
[White "Mikhalsky, Vladimir"]
[Black "Barria Zuniga, Daniel"]
[WhiteFideId "14144352"]
[BlackFideId "3400816"]
[WhiteElo "2272"]
[BlackElo "2414"]
[Result "0-1"]
[Round "06"]
[TimeControl "180+1"]
[Date "2022.12.21"]
[WhiteClock "0:00:26"]
[BlackClock "0:01:02"]

1. c4 {[%clk 0:02:53]}  g6 {[%clk 0:02:59]} 2. d4 {[%clk 0:02:52]}  Bg7 {[%clk 0:03:00]} 3. e4 {[%clk 0:02:52]}  c5 {[%clk 0:02:58]} 4. d5 {[%clk 0:02:52]}  d6 {[%clk 0:02:58]} 5. Bd3 {[%clk 0:02:49]}  e6 {[%clk 0:02:58]} 6. Nf3 {[%clk 0:02:39]}  exd5 {[%clk 0:02:58]} 7. cxd5 {[%clk 0:02:39]}  a6 {[%clk 0:02:58]} 8. a4 {[%clk 0:02:38]}  Ne7 {[%clk 0:02:57]} 9. h3 {[%clk 0:02:35]}  O-O {[%clk 0:02:57]} 10. Nc3 {[%clk 0:02:33]}  f5 {[%clk 0:02:56]} 11. Ng5 {[%clk 0:02:30]}  f4 {[%clk 0:02:52]} 12. Bc4 {[%clk 0:02:12]}  Kh8 {[%clk 0:02:41]} 13. h4 {[%clk 0:02:10]}  h6 {[%clk 0:02:24]} 14. h5 {[%clk 0:02:10]}  Nf5 {[%clk 0:02:24]} 15. Ne6 {[%clk 0:01:43]}  Bxe6 {[%clk 0:02:21]} 16. dxe6 {[%clk 0:01:44]}  Nd4 {[%clk 0:02:20]} 17. hxg6 {[%clk 0:01:40]}  Nbc6 {[%clk 0:02:08]} 18. Nd5 {[%clk 0:01:37]}  Qg5 {[%clk 0:01:54]} 19. g3 {[%clk 0:01:31]}  Qxg6 {[%clk 0:01:53]} 20. Nxf4 {[%clk 0:01:29]}  Qxe4+ {[%clk 0:01:51]} 21. Kd2 {[%clk 0:01:22]}  Nf3+ {[%clk 0:01:50]} 22. Qxf3 {[%clk 0:01:14]}  Qxf3 {[%clk 0:01:51]} 23. Ng6+ {[%clk 0:01:00]}  Kh7 {[%clk 0:01:36]} 24. Bd3 {[%clk 0:00:54]}  Qxf2+ {[%clk 0:01:19]} 25. Kd1 {[%clk 0:00:53]}  Qf3+ {[%clk 0:01:15]} 26. Kd2 {[%clk 0:00:53]}  Qxh1 {[%clk 0:01:15]} 27. Ne7+ {[%clk 0:00:45]}  Kh8 {[%clk 0:01:11]} 28. Ng6+ {[%clk 0:00:40]}  Kg8 {[%clk 0:01:10]} 29. e7 {[%clk 0:00:37]}  Rf2+ {[%clk 0:01:09]} 30. Ke3 {[%clk 0:00:33]}  Rf3+ {[%clk 0:01:07]} 31. Ke4 {[%clk 0:00:30]}  d5+ {[%clk 0:01:03]} 32. Kxd5 {[%clk 0:00:29]}  Rxd3+ {[%clk 0:01:04]} 33. Ke6 {[%clk 0:00:26]}  Qd5# {[%clk 0:01:02]} 0-1


[Site "https://www.chess.com"]

[Event "Titled Tuesday Blitz December 20 Late 2022"]
[White "Milikow, Yoav"]
[Black "Shimanov, Aleksandr"]
[WhiteFideId "2822237"]
[BlackFideId "4198603"]
[WhiteElo "2416"]
[BlackElo "2605"]
[Result "0-1"]
[Round "06"]
[TimeControl "180+1"]
[Date "2022.12.20"]
[WhiteClock "0:00:11"]
[BlackClock "0:00:14"]

1. d4 {[%clk 0:03:00]}  d5 {[%clk 0:02:58]} 2. c4 {[%clk 0:03:00]}  e6 {[%clk 0:02:58]} 3. Nc3 {[%clk 0:03:00]}  Nf6 {[%clk 0:02:58]} 4. cxd5 {[%clk 0:02:56]}  exd5 {[%clk 0:02:56]} 5. Bg5 {[%clk 0:02:56]}  c6 {[%clk 0:02:56]} 6. e3 {[%clk 0:02:56]}  h6 {[%clk 0:02:56]} 7. Bh4 {[%clk 0:02:55]}  Bf5 {[%clk 0:02:56]} 8. Qf3 {[%clk 0:02:52]}  Be6 {[%clk 0:02:56]} 9. Bxf6 {[%clk 0:02:51]}  Qxf6 {[%clk 0:02:57]} 10. Qxf6 {[%clk 0:02:51]}  gxf6 {[%clk 0:02:58]} 11. Bd3 {[%clk 0:02:51]}  a5 {[%clk 0:02:57]} 12. Nf3 {[%clk 0:02:51]}  a4 {[%clk 0:02:57]} 13. a3 {[%clk 0:02:50]}  Nd7 {[%clk 0:02:56]} 14. Nh4 {[%clk 0:02:50]}  b5 {[%clk 0:02:56]} 15. Ke2 {[%clk 0:02:49]}  Nb6 {[%clk 0:02:54]} 16. Rhc1 {[%clk 0:02:38]}  Kd7 {[%clk 0:02:53]} 17. f4 {[%clk 0:02:30]}  Kd8 {[%clk 0:02:46]} 18. Nb1 {[%clk 0:02:19]}  Nc4 {[%clk 0:02:45]} 19. Nd2 {[%clk 0:02:17]}  Bd6 {[%clk 0:02:24]} 20. Rc2 {[%clk 0:02:15]}  Re8 {[%clk 0:02:20]} 21. Nf1 {[%clk 0:01:53]}  Bxf4 {[%clk 0:01:49]} 22. Bxc4 {[%clk 0:01:45]}  bxc4 {[%clk 0:01:50]} 23. exf4 {[%clk 0:01:37]}  Bf5+ {[%clk 0:01:50]} 24. Kd2 {[%clk 0:01:37]}  Bxc2 {[%clk 0:01:51]} 25. Kxc2 {[%clk 0:01:38]}  Re2+ {[%clk 0:01:51]} 26. Nd2 {[%clk 0:01:34]}  Kd7 {[%clk 0:01:45]} 27. Rg1 {[%clk 0:01:33]}  Rg8 {[%clk 0:01:38]} 28. h3 {[%clk 0:01:19]}  Rf2 {[%clk 0:01:23]} 29. f5 {[%clk 0:01:02]}  Re8 {[%clk 0:01:21]} 30. Rf1 {[%clk 0:00:51]}  Ree2 {[%clk 0:01:03]} 31. Rxf2 {[%clk 0:00:51]}  Rxf2 {[%clk 0:01:04]} 32. Kd1 {[%clk 0:00:48]}  Rf4 {[%clk 0:01:00]} 33. Nhf3 {[%clk 0:00:32]}  h5 {[%clk 0:00:56]} 34. Ke2 {[%clk 0:00:28]}  Rxf5 {[%clk 0:00:51]} 35. g3 {[%clk 0:00:23]}  c5 {[%clk 0:00:47]} 36. Ke3 {[%clk 0:00:16]}  cxd4+ {[%clk 0:00:46]} 37. Kxd4 {[%clk 0:00:17]}  Kd6 {[%clk 0:00:41]} 38. Ke3 {[%clk 0:00:16]}  Kc5 {[%clk 0:00:33]} 39. g4 {[%clk 0:00:12]}  hxg4 {[%clk 0:00:33]} 40. hxg4 {[%clk 0:00:13]}  d4+ {[%clk 0:00:33]} 41. Ke4 {[%clk 0:00:03]}  Rd5 {[%clk 0:00:33]} 42. Kf4 {[%clk 0:00:02]}  c3 {[%clk 0:00:31]} 43. Ne4+ {[%clk 0:00:02]}  Kc4 {[%clk 0:00:31]} 44. bxc3 {[%clk 0:00:03]}  dxc3 {[%clk 0:00:32]} 45. Ne1 {[%clk 0:00:03]}  Kb3 {[%clk 0:00:26]} 46. Ke3 {[%clk 0:00:03]}  c2 {[%clk 0:00:23]} 47. Nd2+ {[%clk 0:00:03]}  Kc3 {[%clk 0:00:17]} 48. Ne4+ {[%clk 0:00:02]}  Kb2 {[%clk 0:00:17]} 49. Nxc2 {[%clk 0:00:03]}  Kxc2 {[%clk 0:00:17]} 50. Nxf6 {[%clk 0:00:04]}  Rd3+ {[%clk 0:00:17]} 51. Kf4 {[%clk 0:00:04]}  Rxa3 {[%clk 0:00:17]} 52. Ne8 {[%clk 0:00:04]}  Ra1 {[%clk 0:00:17]} 53. Nd6 {[%clk 0:00:05]}  Rf1+ {[%clk 0:00:17]} 54. Kg3 {[%clk 0:00:05]}  a3 {[%clk 0:00:18]} 55. Nc4 {[%clk 0:00:05]}  a2 {[%clk 0:00:18]} 56. Ne3+ {[%clk 0:00:06]}  Kd3 {[%clk 0:00:19]} 57. Nxf1 {[%clk 0:00:07]}  a1=Q {[%clk 0:00:19]} 58. Kg2 {[%clk 0:00:08]}  Qe5 {[%clk 0:00:20]} 59. Ng3 {[%clk 0:00:09]}  Qf4 {[%clk 0:00:19]} 60. Kh3 {[%clk 0:00:09]}  Ke3 {[%clk 0:00:18]} 61. Nh5 {[%clk 0:00:10]}  Qf1+ {[%clk 0:00:17]} 62. Kh4 {[%clk 0:00:11]}  f6 {[%clk 0:00:16]} 63. Ng7 {[%clk 0:00:10]}  Qh1+ {[%clk 0:00:14]} 64. Kg3 {[%clk 0:00:11]}  Qg1+ {[%clk 0:00:14]} 65. Kh3 {[%clk 0:00:11]}  Kf3 {[%clk 0:00:14]} 0-1


[Site "https://www.chess.com"]